Cogmind - Beta 13 @@@ ROGUE MODE // 2024.04.08 @ 18:04:04 Player: dohmmass Result: Destroyed by G-47 Trooper with Particle Gun Performance ------------- Evolutions (2) 1000 Regions Visited (4) 800 Robots Destroyed (83) 415 Value Destroyed (2162) 2162 Prototype IDs (6) 120 Alien Tech Used (0) 0 Bonus (196) 196 TOTAL SCORE: 4693 Bonus ------- High Alert Combat Kills 130 Follower Combat Kills 66 Cogmind --------- Core Integrity 0/550 Matter 50/300 Energy 279/280 System Corruption 0% Temperature Cool (9) Movement Rolling (80) Location -8/Storage Parts ------- > --- POWER (1) -------- Cooled Ion Engine > --- PROPULSION (2) --- Wheel > --- UTILITY (5) ------ Improved Targeting Computer Hacking Suite > --- WEAPON (3) ------- (None) > --- INVENTORY (5) ---- Advanced Heat Sink Peak State ------------ > --- POWER ------------ Cooled Ion Engine > --- PROPULSION ------- Improved VTOL Module Improved VTOL Module > --- UTILITY ---------- Improved Targeting Computer Hacking Suite > --- WEAPON ----------- Assault Cannon Assault Cannon Chainsword > --- INVENTORY -------- Wheel Advanced Heat Sink Improved Sensor Array Light Armor Plating [Rating: 27] Favorites ----------- Power Ion Engine Engine Ion Engine Propulsion Improved Treads Treads Improved Treads Wheel Wheel Flight Unit Improved VTOL Module Utility Hardened Light Armor Plating Device Structural Scanner Processor Improved Targeting Computer Hackware Hacking Suite Protection Hardened Light Armor Plating Weapon Improved Medium Laser Energy Gun Improved Medium Laser Ballistic Cannon Assault Cannon Launcher Rocket Launcher Slashing Weapon Chainsword Build | -11 -10 -9 -8 -8 ------- Run | Yrd Mat Mat Mat Sto Slots Evolved 4 | . . 2 2 . Power . | . . . . . Propulsion . | . . . . . Utility 3 | . . 2 1 . Weapon 1 | . . . 1 . Parts Attached 51 | 5 6 18 9 13 Power 3 | 1 . 1 . 1 Engine 3 | 1 . 1 . 1 Core . | . . . . . Reactor . | . . . . . Propulsion 12 | 2 2 3 1 4 Treads 5 | 2 2 1 . . Leg . | . . . . . Wheel 5 | . . 2 1 2 Hover . | . . . . . Flight 2 | . . . . 2 Utility 19 | . 2 9 4 4 Device 3 | . 1 1 . 1 Storage . | . . . . . Processor 1 | . . . 1 . Hackware 1 | . . . 1 . Protection 14 | . 1 8 2 3 Artifact . | . . . . . Weapon 17 | 2 2 5 4 4 Energy Gun 7 | 2 . 4 . 1 Energy Cannon . | . . . . . Ballistic Gun . | . . . . . Ballistic Cannon 6 | . 2 . 2 2 Launcher 2 | . . 1 . 1 Special Weapon . | . . . . . Impact Weapon . | . . . . . Slashing Weapon 2 | . . . 2 . Piercing Weapon . | . . . . . Special Melee Weapon . | . . . . . Unidentified Prototypes 4 | . . 2 . 2 Parts Lost 30 | . . 10 4 16 Power 2 | . . 1 . 1 Propulsion 6 | . . 2 1 3 Utility 15 | . . 5 3 7 Weapon 7 | . . 2 . 5 Highest Loss Streak 9 | . . 4 4 9 To Critical Strikes . | . . . . . Average Slot Usage (%) 85 | . 91 88 89 64 Engine 10 | . 14 9 9 6 Treads 13 | . 28 12 . . Wheel 3 | . . 2 11 9 Device 7 | . 11 6 9 2 Processor 2 | . . . 5 9 Hackware 2 | . . . 5 9 Protection 21 | . 8 37 22 5 Energy Gun 12 | . 21 14 . . Ballistic Cannon 6 | . 6 3 14 10 Launcher 1 | . . 1 9 1 Slashing Weapon 1 | . . . 3 7 Naked Turns . | . . . . . Heaviest Build 38 | 8 16 26 38 28 Greatest Support 46 | 40 46 46 26 20 Greatest Overweight (x) 7 | . . 7 3 4 Average Overweight (x) . | . . . 2 . Largest Inventory Capacity 5 | 5 5 5 5 5 Average Capacity 5 | 5 5 5 5 5 Most Carried 5 | 5 5 5 5 5 Average Carried 3 | 1 3 3 3 2 Final Capacity 5 | 5 5 5 5 5 Final Carried 5 | . 5 3 5 1 Class Distribution -------------------- 89% | Mutant 9% | Tank Dominant Class ---------------- Mutant | -10/Materials Mutant | -9/Materials Tank | -8/Materials Mutant | -8/Storage Resources | -11 -10 -9 -8 -8 ----------- Run | Yrd Mat Mat Mat Sto Matter Collected 1137 | 250 168 303 96 320 Remotely . | . . . . . Salvage Created 2832 | . 414 1374 293 751 Parts 173 | . 25 91 18 39 Haulers Intercepted 5 | . 1 3 . 1 Recyclers Shooed 3 | . 2 1 . . Parts Field Recycled . | . . . . . Retrieved Matter . | . . . . . Parts Self-Destructed . | . . . . . Prevented . | . . . . . Kills | -11 -10 -9 -8 -8 ------- Run | Yrd Mat Mat Mat Sto Combat Hostiles Destroyed 57 | . 11 24 7 15 Melee 6 | . . . . 6 Guns 26 | . 7 19 . . Cannons 19 | . 4 3 7 5 AOE 6 | . . 2 . 4 Classes Destroyed 10 | . 5 5 . . Worker 5 | . 1 3 1 . Builder 5 | . . 1 1 3 Tunneler 1 | . . 1 . . Hauler 5 | . 1 3 . 1 Recycler 5 | . . 5 . . Operator 1 | . . 1 . . Watcher 4 | . 1 1 1 1 Swarmer 16 | . 3 12 1 . Grunt 31 | . 8 7 4 12 Sentry 10 | . . 5 2 3 Best Kill Streak 8 | . 3 8 4 7 Combat Bots Only 7 | . 3 3 3 7 Max Kills in Single Turn 2 | . 1 2 2 1 Gunslinging . | . . . . . Exploded 2 | . . 2 . 1 Melee 1 | . . . . 1 Uniques/NPCs Destroyed . | . . . . . Combat | -11 -10 -9 -8 -8 -------- Run | Yrd Mat Mat Mat Sto Hostile Shots Fired 382 | . 48 177 36 121 Missed 111 | . 20 51 11 29 Damage Taken 3754 | . 284 1424 343 1703 Core 773 | . 25 187 76 485 Absorbed by Shields . | . . . . . Redirected to Shielding 101 | . . 91 10 . Core Remaining (%) 81 | 100 90 53 . . Volleys Fired 202 | . 49 96 28 29 Largest 2 | . 2 2 2 2 Hottest 112 | . 90 112 88 88 Shots Fired 371 | . 97 168 56 50 Gun 208 | . 74 134 . . Cannon 158 | . 23 33 56 46 Launcher 5 | . . 1 . 4 Special . | . . . . . Kinetic 158 | . 23 33 56 46 Thermal 208 | . 74 134 . . Explosive 5 | . . 1 . 4 Electromagnetic . | . . . . . Robot Hit Streak 14 | . 10 14 9 12 Robot Miss Streak 7 | . 5 7 6 4 Penetration Max . | . . . . . Secondary Targets 2 | . 1 1 . . Max Gunslinging Chain 1 | . 1 1 . . Shots Hit Robots 226 | . 53 82 35 56 Core Hits 116 | . 26 46 15 29 Critical Kills . | . . . . . Critical Parts Destroyed . | . . . . . Critical Strikes 23 | . 4 12 1 6 Burn 13 | . 3 10 . . Blast 5 | . 1 2 1 1 Sever 5 | . . . . 5 Melee Attacks 41 | . . . 4 37 Impact . | . . . . . Slashing 41 | . . . 4 37 Piercing . | . . . . . Sneak Attacks 4 | . . . 3 1 Combat Hostiles . | . . . . . Follow-up Attacks 6 | . . . . 6 Damage Inflicted 5489 | . 746 1604 1027 2112 Guns 1647 | . 477 1170 . . Cannons 2073 | . 269 340 784 680 Explosions 554 | . . 94 . 460 Melee 1210 | . . . 243 967 Ramming 5 | . . . . 5 Kinetic 2073 | . 269 340 784 680 Thermal 1647 | . 477 1170 . . Explosive 554 | . . 94 . 460 Electromagnetic . | . . . . . Impact . | . . . . . Slashing 1210 | . . . 243 967 Piercing . | . . . . . Highest Corruption 2 | . 2 . . . Average Corruption 2 | . 2 . . . Corruption Purged . | . . . . . Corruption Blocked . | . . . . . Effects 9 | . 9 . . . Message Errors 1 | . 1 . . . Matter Fused 2 | . 2 . . . Heat Flow Errors 1 | . 1 . . . Energy Discharges 2 | . 2 . . . Parts Rejected 1 | . 1 . . . Data Loss (minor) 1 | . 1 . . . Weapon Failures 1 | . 1 . . . Overload Shots . | . . . . . Overflow Damage 180 | . . . 76 104 Projectiles . | . . . . . Explosions 50 | . . . . 50 Melee 130 | . . . 76 54 Knockbacks 20 | . 3 2 10 5 Impact . | . . . . . Kinetic 17 | . 3 2 9 3 Secondary 3 | . . . 1 2 Self-Inflicted Damage 186 | . . 9 . 177 Shots 5 | . . 1 . 4 Rammed 2 | . . . . 2 Targets Rammed 2 | . . . . 2 Kicked . | . . . . . Crushed . | . . . . . Highest Temperature 572 | . 312 572 21 93 Average Temperature 131 | . 79 187 10 39 Received Heat Transfer 1263 | . 102 288 189 684 Effects 13 | . . 13 . . Shutdowns 2 | . . 2 . . Energy Bleed 2 | . . 2 . . Interference 1 | . . 1 . . Short Circuit 1 | . . 1 . . Damage (minor) 2 | . . 2 . . Damage (major) 4 | . . 4 . . Damage (core) 1 | . . 1 . . Siege Activations . | . . . . . Robots Corrupted . | . . . . . Combat Hostiles . | . . . . . Parts Fried . | . . . . . Impact Corruptions . | . . . . . Robots Melted . | . . . . . Combat Hostiles . | . . . . . Parts Melted 7 | . 1 6 . . Heat Transferred 4827 | . 1534 3293 . . Parts Sabotaged . | . . . . . Parts Stolen . | . . . . . Parts Stripped . | . . . . . Power Chain Reactions . | . . . . . Alert | -11 -10 -9 -8 -8 ------- Run | Yrd Mat Mat Mat Sto Peak Influence 804 | . 212 452 467 804 Initial 196 | . . 27 190 196 Average 235 | . 104 223 349 443 Maximum Alert Level 3 | . 1 2 2 3 Low Security (%) 50 | 100 96 41 8 12 Level 1 30 | . 3 49 55 21 Level 2 18 | . . 9 36 62 Level 3 . | . . . . 4 Level 4 . | . . . . . Level 5 . | . . . . . High Security . | . . . . . Max Security . | . . . . . Squads Dispatched 12 | . 4 3 . 5 Investigation 4 | . 1 1 . 2 Extermination . | . . . . . Reinforcement 6 | . 3 2 . 1 Assault 2 | . . . . 2 Garrison . | . . . . . Intercept . | . . . . . Searches Triggered . | . . . . . Construction Impeded . | . . . . . Haulers Reinforced . | . . . . . Active Scanning Responses . | . . . . . Cargo Convoy Interrupts . | . . . . . Stealth | -11 -10 -9 -8 -8 --------- Run | Yrd Mat Mat Mat Sto Distress Signals 8 | . 2 2 2 2 Communications Jammed . | . . . . . Distress Signals . | . . . . . Times Spotted 112 | . 19 40 14 39 Peak Tracking Total 10 | . 4 7 4 10 Tactical Retreats 12 | . . 5 3 4 Traps | -11 -10 -9 -8 -8 ------- Run | Yrd Mat Mat Mat Sto Traps Triggered 3 | . 2 1 . . Indirectly . | . . . . . Trap Hack Attempts . | . . . . . Triggered . | . . . . . Disarmed . | . . . . . Reprogrammed . | . . . . . Reused . | . . . . . Traps Extracted . | . . . . . Installed . | . . . . . Triggered . | . . . . . Machines | -11 -10 -9 -8 -8 ---------- Run | Yrd Mat Mat Mat Sto Machines Disabled 7 | . 1 . . 6 Max in Single Turn 1 | . 1 . . 1 Machines Repaired . | . . . . . Machines Dismantled . | . . . . . Machines Sabotaged . | . . . . . Overloaded Fab Kills . | . . . . . Hacking | -11 -10 -9 -8 -8 --------- Run | Yrd Mat Mat Mat Sto Machines Accessed 7 | . . 4 . 3 Terminals 4 | . . 1 . 3 Fabricators . | . . . . . Repair Stations . | . . . . . Recycling Units 1 | . . 1 . . Scanalyzers 2 | . . 2 . . Garrison Access . | . . . . . Total Hacks 24 | . . 18 . 6 Successful 17 | . . 15 . 2 Failed 7 | . . 3 . 4 Catastrophic 2 | . . . . 2 Database Lockouts . | . . . . . Manual . | . . . . . Terminals 9 | . . 3 . 6 Fabricators . | . . . . . Repair Stations . | . . . . . Recycling Units 1 | . . 1 . . Scanalyzers 14 | . . 14 . . Garrison Access . | . . . . . Terminal Hacks 3 | . . 1 . 2 Prototype ID Bank 1 | . . 1 . . Open Door 1 | . . . . 1 Maintenance Status 1 | . . . . 1 Fabricator Hacks . | . . . . . Repair Station Hacks . | . . . . . Recycling Unit Hacks 1 | . . 1 . . Report Inventory 1 | . . 1 . . Scanalyzer 13 | . . 13 . . Insert Component 5 | . . 5 . . Analyze 8 | . . 8 . . Garrison Access Hacks . | . . . . . Unauthorized Hacks . | . . . . . Terminals . | . . . . . Fabricators . | . . . . . Repair Stations . | . . . . . Recycling Units . | . . . . . Scanalyzers . | . . . . . Garrison Access . | . . . . . Data Cores Recovered . | . . . . . Used . | . . . . . Hacking Detections 3 | . . 1 . 2 Full Trace Events 2 | . . . . 2 Feedback Events . | . . . . . Feedback Blocked . | . . . . . Robot Schematics Acquired . | . . . . . Robots Built . | . . . . . Authchips . | . . . . . Time . | . . . . . Total Robot Build Rating . | . . . . . Part Schematics Acquired 5 | . . 5 . . Parts Built . | . . . . . Authchips . | . . . . . Time . | . . . . . Total Part Build Rating . | . . . . . Parts Repaired . | . . . . . Time . | . . . . . Parts Recycled . | . . . . . Recycled Matter . | . . . . . Retrieved Matter . | . . . . . Retrieved Components . | . . . . . Parts Scanalyzed 5 | . . 5 . . Part Schematics Acquired 5 | . . 5 . . Parts Damaged . | . . . . . Bothacking | -11 -10 -9 -8 -8 ------------ Run | Yrd Mat Mat Mat Sto Used RIF Installer . | . . . . . Robots Hacked . | . . . . . Non-combat . | . . . . . Combat . | . . . . . Robot Hacks Applied . | . . . . . Relay Couplers Released . | . . . . . Fabnet Peak Effective % . | . . . . . Robots Rewired . | . . . . . Allies Hacked . | . . . . . Hacks Repelled . | . . . . . Allies | -11 -10 -9 -8 -8 -------- Run | Yrd Mat Mat Mat Sto Total Allies 2 | . . . . 2 Largest Group 2 | . . . . 2 Highest-Rated Group 62 | . . . . 62 Highest-Rated Ally 31 | . . . . 31 Total Orders . | . . . . . Ally Attacks 22 | . . . . 22 Total Damage 358 | . . . . 358 Kills 2 | . . . . 2 Allies Corrupted . | . . . . . Allies Melted . | . . . . . Intel | -11 -10 -9 -8 -8 ------- Run | Yrd Mat Mat Mat Sto Robot Analysis Total . | . . . . . Derelict Logs Recovered . | . . . . . Drone Launches . | . . . . . Drone Recoveries . | . . . . . Exploration | -11 -10 -9 -8 -8 ------------- Run | Yrd Mat Mat Mat Sto Turns Passed 2876 | 44 888 1112 350 482 Spaces Moved 1411 | 35 446 475 198 257 Core 103 | 20 . 57 . 26 Treads 756 | 15 446 295 . . Legs . | . . . . . Wheels 529 | . . 123 198 208 Hover . | . . . . . Flight 23 | . . . . 23 Fastest Speed 50 | 50 160 90 90 80 Average Speed 145 | 97 160 166 115 109 Slowest Speed 400 | 160 160 400 125 250 Overloaded Moves . | . . . . . Propulsion Burnouts . | . . . . . Robots Hopped . | . . . . . Cave-ins Triggered . | . . . . . Exploration Rate (%) 37 | 4 82 37 21 44 Regions Visited 4 Branch Regions 1 Pre-discovered Areas 1 | . . . . 1 Known Exits Taken . | . . . . . Unknown Exits Taken 4 | 1 1 1 1 . Scrap Searched . | . . . . . Spaces Dug . | . . . . . Terrain Destroyed 65 | . . 9 9 47 Melee . | . . . . . Projectile 15 | . . . 9 6 AOE 50 | . . 9 . 41 Terrain Rammed . | . . . . . Walls Destroyed . | . . . . . Machines Disabled . | . . . . . Actions | -11 -10 -9 -8 -8 --------- Run | Yrd Mat Mat Mat Sto Total 1815 | 46 523 630 256 360 Wait 52 | . 7 23 6 16 Move 1407 | 34 445 474 197 257 Hop . | . . . . . Pick Up 51 | 6 12 14 10 9 Fast Attach . | . . . . . Attach 41 | 5 3 15 6 12 Detach 1 | . . 1 . . Swap 10 | . 3 3 3 1 Drop 14 | 1 4 4 2 3 Fire 202 | . 49 96 28 29 Melee 35 | . . . 4 31 Ram 2 | . . . . 2 Kick . | . . . . . Crush . | . . . . . Escape Stasis . | . . . . . Rewire . | . . . . . Trap . | . . . . . Miscellaneous . | . . . . . Route ------- -11/Scrapyard -10/Materials (discovered 2 exits: *Mat / [*Min]) -9/Materials -8/Materials -8/Storage History --------- Turn | Location | Event 4 | -11/Scrapyard | Discovered new exit (range 15) 45 | -11/Scrapyard | Entered Materials 60 | -10/Materials | Discovered new exit (range 16) 287 | -10/Materials | Discovered new exit (range 3) 317 | -10/Materials | Build established: Mutant 933 | -10/Materials | Entered another Materials area 933 | -9/Materials | Evolved 2 slots: Utility x2 1671 | -9/Materials | Lost 4 parts (2n2u) 2041 | -9/Materials | Discovered new exit (range 4) 2045 | -9/Materials | Entered another Materials area 2045 | -8/Materials | Evolved 2 slots: Utility x1, Weapon x1 2175 | -8/Materials | Lost 4 parts (1n3u) 2287 | -8/Materials | Discovered new exit (range 13) 2395 | -8/Materials | Entered Storage 2516 | -8/Storage | Core integrity fell below 50% 2539 | -8/Storage | Destroyed 7 combat bots 2549 | -8/Storage | Lost 9 parts (1p2n3u3w) 2745 | -8/Storage | Met a pair of Derelict thieves 2827 | -8/Storage | Core integrity fell below 20% 2854 | -8/Storage | Learned location of Armory (-3) 2854 | -8/Storage | Lost 5 parts (1n3u1w) 2877 | -8/Storage | Destroyed by G-47 Trooper with Particle Gun Last Messages --------------- 02814_ K-01 Serf collects debris. 02815_ Critical hit (Burn: +37). 02816_ Acquired 2 matter. 02823_ Imp. Sensor Array destroyed. 02823_ Lgt. Armor Plating destroyed. 02826_ O-16 Technician: "IFF HANDSHAKE FAILED. SECURING TERMINAL." 02834_ ALERT: Hostiles spotted, dispatching reinforcements to Terminal S012. 02838_ Connecting with Door Terminal... 02850_ A derelict emerges from hiding: "Psst-beep. Hey you, we've already cleared out from here, don't stick around. I stayed behind to warn any stragglers, and you certainly look like you're straggling." 02854_ 3H-JD6(g): "We'll attack Armory later, meet at one of the rendevous points." World map updated: -3/Armory. 02854_ 3H-JD6(g) slips back into hiding. 02864_ M-28 Smith repairs G-47 Trooper. Map ----- +----------------------------------------------------+ | ?????????????????????????????????????????????????? | | ?????????????????????????????????????????????????? | | ?????????????????????????????????????????????????? | | ?????????????????????????????????????????????????? | | ?????????????????????????????????????????????????? | | ?????????????????????????????????????????????????? | | ?????????????????????????????????????????????????? | | ?????????????????????????????????????????? ?????? | | ?????????????????????????????????????????? ?????? | | ???????????????????????????????????# ????? ?????? | | ???????????????????????????????????# ???? #????? | | ???????????????????????????????????# ??" #????? | | ???????????????????????????????????# "?" +????? | | ???????????????????????????????????+ """ #????? | | ???????????????????????????????????# """ #????? | | ???????????????????????????????????# "" #????? | | ???????????????????????????????????# #????? | | ???????????????????????????????????# ####?? | | ????????????????????????????????????? * ## ### | | ?????????????????????????????????????? # | | ??????????????????????????????????????? # """ | | ????????????????????????????????????????# #="T" | | ?????????????????????#+##+#????##???????# !/% " | | ?????????????????????# ##### #???????# # | | ??????????????????????? ## #?????### ="* | | ??????????????#####????##@## " ######### %# | | ??????????????# ???? # ## T # % [%/ # | | ??????????????# "???? # ## " # [!####"#####" | | ??????????????# ????? # ## #* =#?## ##"R | | ??????????????# ???"" + # #%["%%#?#T ##"" | | ??????????????# "???" # / #["""=#?##" "##### | | ??????????????# "???" #gg# # " ]#?? ???? | | ??????????????# """"" # # #* ##** #??? | | ??????????????# #g ######= ""[## * **#??? | | ???????????#####+#####+##gm ^ #!""" ##* * *#??? | | ???????????# # # "" =#########??? | | ???????????# / ##### ####### + *=!!#??????????? | | ???????????# # #???# #?????# #%%= #??????????? | | ???????????##### #???# #????## ###[###??##??????? | | ??????????????##/#####/##???# ##### #??????? | | ??????????????# #???# #??????? | | ??????????????# """" #???# #??????? | | ??????????????# "??? ????# ##### #??????? | | ??????????????# "??? ????## ##???????##??????? | | ??????????????# "??? ?????# #????????????????? | | ??????????????# "??? ?????# #????????????????? | | ??????????????# """" #????# #????????????????? | | ??????????????# #???## ##???????????????? | | ???????????"####/############ #???????????????? | | ???????????" #???????????????? | +----------------------------------------------------+ Best States ------------- Heat Dissipation 53 Energy Generation 14 Energy Capacity 280 Matter Stores 300 Matter Capacity 300 Sight Range 16 Robot Scan Range 15 Terrain Scan Density 10 Armor Coverage 450 Weapon Shielding 33 Evasion (%) 50 Targeting Accuracy 6 Recoil Reduction 2 Offensive Hacking 10 Item Schematics ----------------- Hrd. Light Armor Plating | -9/Materials | Scanalyzed Weapon Shielding | -9/Materials | Scanalyzed Imp. Treads | -9/Materials | Scanalyzed Rocket Launcher | -9/Materials | Scanalyzed Cooling System | -9/Materials | Scanalyzed Robot Schematics ------------------ None Fabricated ------------ Nothing Alien Tech Used ----------------- None Achievements -------------- None Challenges ------------ None Game ------ Seed FrostStasisInsulator Manual? 0 Play Time 00:26:06 Cumulative 28.5 hours Start 2024.04.08 @ 17:40:01 End 2024.04.08 @ 18:04:04 Sessions 1 Manual Loads 0 Difficulty Rogue Special Mode None Game No. 59 Rogue 59 Adventurer 0 Explorer 0 Win Type - Total 0 Types 0/0/0/0/0/0/0/0/0 Lore% 17 Gallery% 33 Achievement% 22 Wizard Run 0 Options --------- Layout 1 ASCII 0 Keyboard 0 Movement Mouse Keybinds 0 Fullscreen 1 Font 24/Smallcaps Map View 50x35 Zoom Use 0% Tactical HUD 1 Map Filters NONE Filters NONE Steam 1 RUN: df055a32-9996-42be-9802-378cffd6321c